lending/lending_fUSD_20240723
["ID","MTS","AMOUNT","RATE_DAILY","PERIOD"]
[333050186,1721778650312,-669.69,0.00010988,2]
[333050188,1721778650321,-500.0,0.00010988,2]
[333050190,1721778650330,-386.99,0.00010988,2]
[333050192,1721778650339,-500.0,0.00010988,2]
[333050194,1721778650349,-349.6,0.00010988,2]
[333050196,1721778650360,-500.0,0.00010988,2]
[333050198,1721778650371,-500.0,0.00010988,2]
[333050200,1721778650381,-500.0,0.00010988,2]
[333050202,1721778650391,-170.41,0.00010988,2]
[333050204,1721778650400,-500.0,0.00010988,2]
[333050206,1721778650410,-500.0,0.00010988,2]
[333050208,1721778650421,-500.0,0.00010988,2]
[333050210,1721778650431,-613.53,0.00010988,2]
[333050212,1721778650441,-500.0,0.00010988,2]
[333050213,1721778650451,-500.0,0.00010988,2]
[333050215,1721778650461,-500.0,0.00010988,2]
[333050217,1721778650472,-500.0,0.00010988,2]
[333050219,1721778650482,-1209.44,0.00010988,2]
[333050221,1721778650492,-500.0,0.00010988,2]
[333050223,1721778650501,-500.0,0.00010988,2]
[333050225,1721778650511,-1542.79,0.00010988,2]
[333050227,1721778650520,-3610.12,0.00010988,2]
[333050229,1721778650529,-861.94,0.00010988,2]
[333050231,1721778650539,-500.0,0.00010989,2]
[333050233,1721778650548,-358.04,0.00010989,2]
[333050235,1721778650557,-500.0,0.00010989,2]
[333050237,1721778650570,-500.0,0.00010989,2]
[333050239,1721778650579,-500.0,0.00010989,2]
[333050241,1721778650588,-500.0,0.00010989,2]
[333050243,1721778650598,-500.0,0.00010989,2]
[333050245,1721778650608,-596.01,0.00010989,2]
[333050247,1721778650617,-494.28,0.00010989,2]
[333050248,1721778650626,-500.0,0.00010989,2]
[333050250,1721778650635,-163.8,0.00010989,2]
[333050252,1721778650645,-500.0,0.00010989,2]
[333050254,1721778650655,-500.0,0.00010989,2]
[333050256,1721778650664,-500.0,0.00010989,2]
[333050258,1721778650673,-500.0,0.00010989,2]
[333050260,1721778650682,-500.0,0.00010989,2]
[333050262,1721778650691,-500.0,0.00010989,2]
[333050264,1721778650701,-500.0,0.00010993,2]
[333050266,1721778650711,-500.0,0.00010993,2]
[333050267,1721778650720,-500.0,0.00010993,2]
[333050269,1721778650729,-500.0,0.00010993,2]
[333050271,1721778650741,-550.9,0.00010993,2]
[333050273,1721778650751,-500.0,0.00010993,2]
[333050275,1721778650761,-356.34,0.00010993,2]
[333050277,1721778650771,-594.04,0.00010993,2]
[333050279,1721778650781,-320.24,0.00010993,2]
[333050281,1721778650791,-518.44,0.00010993,2]
[333050283,1721778650800,-502.36,0.00010993,2]
[333050285,1721778650809,-500.0,0.00010993,2]
[333050287,1721778650818,-500.0,0.00010993,2]
[333050289,1721778650829,-587.5340637,0.00010993,2]
[333050291,1721778650838,-500.0,0.00010993,2]
[333050293,1721778650847,-552.98,0.00010993,2]
[333050295,1721778650856,-502.87,0.00010993,2]
[333050297,1721778650865,-4686.05,0.00010993,2]
[333050299,1721778650875,-2271.45,0.00010993,2]
[333050301,1721778650884,-500.0,0.00010993,2]
[333050303,1721778650893,-1391.01,0.00010993,2]
[333050305,1721778650903,-500.0,0.00010993,2]
[333050306,1721778650913,-500.0,0.00010993,2]
[333050308,1721778650922,-500.0,0.00010993,2]
[333050310,1721778650932,-500.0,0.00010993,2]
[333050312,1721778650941,-500.0,0.00010993,2]
[333050314,1721778650951,-500.0,0.00010993,2]
[333050316,1721778650960,-500.0,0.00010993,2]
[333050318,1721778650970,-500.0,0.00010993,2]
[333050320,1721778650979,-500.0,0.00010993,2]
[333050322,1721778650989,-379.58716445,0.00010994,2]
[333050324,1721778650998,-281.99,0.00010994,2]
[333050326,1721778651008,-500.0,0.00010994,2]
[333050328,1721778651017,-500.0,0.00010994,2]
[333050330,1721778651027,-500.0,0.00010994,2]
[333050332,1721778651037,-500.0,0.00010994,2]
[333050334,1721778651047,-335.43,0.00010994,2]
[333050336,1721778651056,-500.0,0.00010994,2]
[333050338,1721778651066,-500.0,0.00010994,2]
[333050339,1721778651075,-500.0,0.00010994,2]
[333050341,1721778651084,-538.35,0.00010994,2]
[333050343,1721778651093,-500.0,0.00010994,2]
[333050345,1721778651102,-150.0,0.00010994,2]
[333050347,1721778651111,-500.0,0.00010994,2]
[333050349,1721778651121,-366.21,0.00010994,2]
[333050350,1721778651130,-500.0,0.00010994,2]
[333050352,1721778651139,-311.36,0.00010994,2]
[333050354,1721778651148,-500.0,0.00010994,2]
[333050356,1721778651157,-318.76,0.00010994,2]
[333050358,1721778651166,-500.0,0.00010994,2]
[333050360,1721778651175,-557.79,0.00010994,2]
[333050362,1721778651185,-500.0,0.00010994,2]
[333050363,1721778651194,-500.0,0.00010994,2]
[333050365,1721778651204,-500.0,0.00010994,2]
[333050367,1721778651212,-500.0,0.00010994,2]
[333050369,1721778651222,-216.98,0.00010994,2]
[333050371,1721778651231,-500.0,0.00010994,2]
[333050373,1721778651240,-582.39,0.00010994,2]
[333050374,1721778651249,-500.0,0.00010994,2]
[333050376,1721778651258,-611.8,0.00010994,2]
[333050378,1721778651267,-599.5,0.00010994,2]
[333050380,1721778651276,-500.0,0.00010994,2]
[333050382,1721778651286,-500.0,0.00010994,2]
[333050384,1721778651295,-635.86,0.00010994,2]
[333050386,1721778651304,-500.0,0.00010994,2]
[333050387,1721778651314,-500.0,0.00010994,2]
[333050389,1721778651323,-500.0,0.00010994,2]
[333050391,1721778651332,-428.18,0.00010994,2]
[333050393,1721778651341,-500.0,0.00010994,2]
[333050395,1721778651350,-500.0,0.00010994,2]
[333050397,1721778651359,-500.0,0.00010994,2]
[333050399,1721778651369,-500.0,0.00010994,2]
[333050401,1721778651378,-382.0,0.00010994,2]
[333050402,1721778651387,-500.0,0.00010994,2]
[333050404,1721778651397,-500.0,0.00010994,2]
[333050406,1721778651407,-500.0,0.00010994,2]
[333050408,1721778651416,-500.0,0.00010994,2]
[333050410,1721778651425,-253.56,0.00010994,2]
[333050412,1721778651434,-841.23,0.00010994,2]
[333050413,1721778651443,-693.11,0.00010994,2]
[333050415,1721778651452,-441.84,0.00010994,2]
[333050417,1721778651462,-763.74,0.00010994,2]
[333050419,1721778651471,-500.0,0.00010994,2]
[333050420,1721778651481,-500.0,0.00010994,2]
[333050421,1721778651490,-975.87,0.00010994,2]
[333050422,1721778651500,-1000.84,0.00010994,2]
[333050423,1721778651509,-1259.76,0.00010994,2]
[333050424,1721778651519,-500.0,0.00010994,2]
[333050425,1721778651528,-204.28,0.00010994,2]
[333050426,1721778651538,-510.42,0.00010994,2]
[333050427,1721778651547,-3599.81,0.00010994,2]
[333050428,1721778651556,-2247.63,0.00010994,2]
[333050429,1721778651566,-801.19,0.00010994,2]
[333050430,1721778651578,-187.65,0.00010994,2]
[333050431,1721778651587,-575.84,0.00010994,2]
[333050432,1721778651596,-814.8,0.00010994,2]
[333050433,1721778651605,-1165.71,0.00010994,2]
[333050434,1721778651614,-443.94,0.00010994,2]
[333050435,1721778651623,-909.88,0.00010994,2]
[333050436,1721778651632,-1157.07,0.00010994,2]
[333050437,1721778651641,-713.25,0.00010994,2]
[333050438,1721778651650,-2309.79,0.00010994,2]
[333050439,1721778651660,-1226.42,0.00010994,2]
[333050441,1721778651670,-500.0,0.00010994,2]
[333050443,1721778651680,-465.53,0.00010994,2]
[333050445,1721778651689,-500.0,0.00010994,2]
[333050447,1721778651698,-500.0,0.00010994,2]
[333050449,1721778651707,-500.0,0.00010994,2]
[333050451,1721778651717,-669.69,0.00010994,2]
[333050452,1721778651725,-500.0,0.00010994,2]
[333050454,1721778651735,-500.0,0.00010994,2]
[333050456,1721778651744,-413.21,0.00010994,2]
[333050458,1721778651753,-191.95,0.00010994,2]
[333050460,1721778651762,-293.78,0.00010994,2]
[333050462,1721778651771,-527.87,0.00010994,2]
[333050463,1721778651780,-500.0,0.00010994,2]
[333050465,1721778651789,-500.0,0.00010994,2]
[333050467,1721778651798,-500.0,0.00010994,2]
[333050469,1721778651807,-500.0,0.00010994,2]
[333050471,1721778651816,-500.0,0.00010994,2]
[333050473,1721778651825,-500.0,0.00010994,2]
[333050475,1721778651834,-397.18,0.00010994,2]
[333050476,1721778651843,-500.0,0.00010994,2]
[333050478,1721778651852,-500.0,0.00010994,2]
[333050480,1721778651862,-500.0,0.00010994,2]
[333050482,1721778651871,-546.45,0.00010994,2]
[333050484,1721778651880,-517.05,0.00010994,2]
[333050486,1721778651889,-500.0,0.00010994,2]
[333050487,1721778651898,-1209.44,0.00010994,2]
[333050489,1721778651907,-500.0,0.00010994,2]
[333050491,1721778651916,-500.0,0.00010994,2]
[333050493,1721778651925,-500.0,0.00010994,2]
[333050495,1721778651935,-1542.79,0.00010994,2]
[333050497,1721778651944,-515.25,0.00010994,2]
[333050498,1721778651953,-3610.12,0.00010994,2]
[333050500,1721778651963,-861.94,0.00010994,2]
[333050502,1721778651973,-500.0,0.00010995,2]
[333050504,1721778651982,-500.0,0.00010995,2]
[333050506,1721778651991,-223.33,0.00010995,2]
[333050508,1721778652000,-620.1,0.00010995,2]
[333050510,1721778652009,-546.87,0.00010995,2]
[333050511,1721778652019,-500.0,0.00010995,2]
[333050513,1721778652028,-500.0,0.00010995,2]
[333050515,1721778652037,-257.34,0.00010995,2]
[333050517,1721778652047,-606.0,0.00010995,2]
[333050519,1721778652056,-500.0,0.00010995,2]
[333050521,1721778652065,-401.97,0.00010995,2]
[333050523,1721778652074,-355.41,0.00010995,2]
[333050525,1721778652084,-381.33,0.00010995,2]
[333050527,1721778652093,-483.24,0.00010995,2]
[333050529,1721778652102,-500.0,0.00010995,2]
[333050531,1721778652111,-384.33,0.00010995,2]
[333050533,1721778652121,-500.0,0.00010995,2]
[333050535,1721778652130,-500.0,0.00010995,2]
[333050537,1721778652139,-500.0,0.00010997,2]
[333050539,1721778652148,-500.0,0.00010997,2]
[333050541,1721778652158,-500.0,0.00010997,2]
[333050543,1721778652167,-181.37,0.00010997,2]
[333050545,1721778652176,-500.0,0.00010997,2]
[333050547,1721778652185,-500.0,0.00010997,2]
[333050549,1721778652195,-500.0,0.00010997,2]
[333050551,1721778652204,-500.0,0.00010997,2]
[333050553,1721778652214,-500.0,0.00010997,2]
[333050555,1721778652223,-546.87,0.00010997,2]
[333050557,1721778652233,-150.0,0.00010997,2]
[333050559,1721778652242,-252.23,0.00010997,2]
[333050561,1721778652253,-500.0,0.00010997,2]
[333050563,1721778652263,-500.0,0.00010997,2]
[333050565,1721778652273,-500.0,0.00010997,2]
[333050567,1721778652282,-293.92,0.00010997,2]
[333050569,1721778652291,-500.0,0.00010997,2]
[333050571,1721778652302,-229.3,0.00010997,2]
[333050573,1721778652311,-500.0,0.00010997,2]
[333050575,1721778652320,-500.0,0.00010997,2]
[333050577,1721778652330,-500.0,0.00010997,2]
[333050579,1721778652339,-500.0,0.00010997,2]
[333050581,1721778652348,-500.0,0.00010997,2]
[333050583,1721778652359,-500.0,0.00010997,2]
[333050585,1721778652368,-167.42,0.00010997,2]
[333050587,1721778652379,-599.5,0.00010997,2]
[333050589,1721778652388,-500.0,0.00010997,2]
[333050591,1721778652397,-635.86,0.00010997,2]
[333050592,1721778652407,-500.0,0.00010997,2]
[333050593,1721778652416,-500.0,0.00010997,2]
[333050594,1721778652425,-500.0,0.00010997,2]
[333050595,1721778652433,-500.0,0.00010997,2]
[333050596,1721778652444,-500.0,0.00010997,2]
[333050597,1721778652453,-500.0,0.00010997,2]
[333050598,1721778652463,-231.88,0.00010997,2]
[333050599,1721778652473,-841.23,0.00010997,2]
[333050600,1721778652482,-763.74,0.00010997,2]
[333050601,1721778652492,-500.0,0.00010997,2]
[333050602,1721778652501,-975.87,0.00010997,2]
[333050603,1721778652511,-500.0,0.00010997,2]
[333050604,1721778652521,-510.42,0.00010997,2]
[333050605,1721778652530,-801.19,0.00010997,2]
[333050606,1721778652539,-814.8,0.00010997,2]
[333050607,1721778652548,-909.88,0.00010997,2]
[333050608,1721778652557,-713.25,0.00010997,2]
[333050609,1721778652571,-500.0,0.00010997,2]
[333050610,1721778652580,-500.0,0.00010997,2]
[333050611,1721778652589,-323.1,0.00010997,2]
[333050612,1721778652598,-500.0,0.00010997,2]
[333050613,1721778652607,-669.69,0.00010997,2]
[333050614,1721778652616,-500.0,0.00010997,2]
[333050615,1721778652625,-268.49,0.00010997,2]
[333050616,1721778652634,-500.0,0.00010997,2]
[333050617,1721778652643,-500.0,0.00010997,2]
[333050618,1721778652655,-500.0,0.00010997,2]
[333050619,1721778652773,-500.0,0.00010997,2]
[333050620,1721778652785,-500.0,0.00010997,2]
[333050621,1721778652794,-500.0,0.00010997,2]
[333050622,1721778652803,-500.0,0.00010997,2]
[333050623,1721778652813,-1209.44,0.00010997,2]
[333050624,1721778652822,-262.18,0.00010997,2]
[333050625,1721778652832,-500.0,0.00010997,2]
[333050626,1721778652842,-1542.79,0.00010997,2]
[333050627,1721778652852,-3610.12,0.00010997,2]
[333050628,1721778652862,-861.94,0.00010997,2]
[333050629,1721778652871,-590.17,0.00010998,2]
[333050630,1721778652881,-500.0,0.00010998,2]
[333050631,1721778652891,-258.41,0.00010998,2]
[333050632,1721778652901,-500.0,0.00010998,2]
[333050633,1721778652911,-402.74,0.00010998,2]
[333050634,1721778652921,-500.0,0.00010998,2]
[333050635,1721778652931,-546.87,0.00010998,2]
[333050636,1721778652941,-150.0,0.00010998,2]
[333050637,1721778652951,-500.0,0.00010998,2]
[333050638,1721778652961,-500.0,0.00010998,2]
[333050639,1721778652970,-524.6,0.00010998,2]
[333050640,1721778652980,-500.0,0.00010998,2]
[333050641,1721778652990,-161.21,0.00010998,2]
[333050642,1721778653000,-500.0,0.00010998,2]
[333050643,1721778653010,-500.0,0.00010998,2]
[333050644,1721778653020,-500.0,0.00010998,2]
[333050645,1721778653029,-500.0,0.00010998,2]
[333050646,1721778653039,-500.0,0.00010998,2]
[333050647,1721778653048,-500.0,0.00010998,2]
[333050648,1721778653057,-599.5,0.00010998,2]
[333050649,1721778653067,-599.5,0.00010998,2]
[333050650,1721778653076,-500.0,0.00010998,2]
[333050651,1721778653086,-500.0,0.00010998,2]
[333050652,1721778653095,-500.0,0.00010998,2]
[333050653,1721778653105,-635.86,0.00010998,2]
[333050654,1721778653115,-500.0,0.00010998,2]
[333050655,1721778653125,-500.0,0.00010998,2]
[333050656,1721778653135,-500.0,0.00010998,2]
[333050657,1721778653144,-500.0,0.00010998,2]
[333050658,1721778653154,-500.0,0.00010998,2]
[333050659,1721778653163,-557.83,0.00010998,2]
[333050660,1721778653172,-500.0,0.00010998,2]
[333050661,1721778653181,-500.0,0.00010998,2]
[333050662,1721778653190,-500.0,0.00010998,2]
[333050663,1721778653199,-500.0,0.00010998,2]
[333050664,1721778653209,-500.0,0.00010998,2]
[333050665,1721778653218,-500.0,0.00010998,2]
[333050666,1721778653228,-500.0,0.00010998,2]
[333050667,1721778653237,-500.0,0.00010998,2]
[333050668,1721778653246,-500.0,0.00010998,2]
[333050669,1721778653256,-500.0,0.00010998,2]
[333050670,1721778653265,-841.23,0.00010998,2]
[333050671,1721778653275,-693.11,0.00010998,2]
[333050672,1721778653285,-693.11,0.00010998,2]
[333050673,1721778653294,-763.74,0.00010998,2]
[333050674,1721778653303,-763.74,0.00010998,2]
[333050675,1721778653312,-500.0,0.00010998,2]
[333050676,1721778653322,-500.0,0.00010998,2]
[333050677,1721778653331,-500.0,0.00010998,2]
[333050678,1721778653340,-1000.84,0.00010998,2]
[333050679,1721778653350,-1000.84,0.00010998,2]
[333050680,1721778653359,-975.87,0.00010998,2]
[333050681,1721778653368,-975.87,0.00010998,2]
[333050682,1721778653377,-1259.76,0.00010998,2]
[333050683,1721778653386,-1259.76,0.00010998,2]
[333050684,1721778653395,-284.38,0.00010998,2]
[333050685,1721778653405,-510.42,0.00010998,2]
[333050686,1721778653414,-3599.81,0.00010998,2]
[333050687,1721778653424,-3599.81,0.00010998,2]
[333050688,1721778653433,-2247.63,0.00010998,2]
[333050689,1721778653442,-2247.63,0.00010998,2]
[333050690,1721778653451,-801.19,0.00010998,2]
[333050691,1721778653460,-575.84,0.00010998,2]
[333050692,1721778653470,-575.84,0.00010998,2]
[333050693,1721778653480,-814.8,0.00010998,2]
[333050694,1721778653489,-1165.71,0.00010998,2]
[333050695,1721778653499,-1165.71,0.00010998,2]
[333050696,1721778653508,-909.88,0.00010998,2]
[333050697,1721778653517,-1157.07,0.00010998,2]
[333050698,1721778653526,-1157.07,0.00010998,2]
[333050699,1721778653536,-713.25,0.00010998,2]
[333050700,1721778653546,-2309.79,0.00010998,2]
[333050701,1721778653555,-2309.79,0.00010998,2]
[333050702,1721778653567,-1226.42,0.00010998,2]
[333050703,1721778653577,-1226.42,0.00010998,2]
[333050704,1721778653586,-500.0,0.00010998,2]
[333050705,1721778653595,-318.49,0.00010998,2]
[333050706,1721778653606,-500.0,0.00010998,2]
[333050707,1721778653615,-500.0,0.00010998,2]
[333050708,1721778653625,-500.0,0.00010998,2]
[333050709,1721778653634,-669.69,0.00010998,2]
[333050710,1721778653645,-500.0,0.00010998,2]
[333050711,1721778653654,-500.0,0.00010998,2]
[333050712,1721778653663,-414.51,0.00010998,2]
[333050713,1721778653673,-527.87,0.00010998,2]
[333050714,1721778653682,-527.87,0.00010998,2]
[333050715,1721778653692,-500.0,0.00010998,2]
[333050716,1721778653701,-500.0,0.00010998,2]
[333050717,1721778653711,-500.0,0.00010998,2]
[333050718,1721778653722,-623.42,0.00010998,2]
[333050719,1721778653732,-500.0,0.00010998,2]
[333050720,1721778653741,-500.0,0.00010998,2]
[333050721,1721778653750,-500.0,0.00010998,2]
[333050722,1721778653760,-500.0,0.00010998,2]
[333050723,1721778653769,-500.0,0.00010998,2]
[333050724,1721778653778,-546.45,0.00010998,2]
[333050725,1721778653788,-546.45,0.00010998,2]
[333050726,1721778653797,-261.61,0.00010998,2]
[333050727,1721778653807,-1209.44,0.00010998,2]
[333050728,1721778653817,-625.53,0.00010998,2]
[333050729,1721778653826,-500.0,0.00010998,2]
[333050730,1721778653836,-500.0,0.00010998,2]
[333050731,1721778653845,-1542.79,0.00010998,2]
[333050732,1721778653855,-515.25,0.00010998,2]
[333050733,1721778653864,-515.25,0.00010998,2]
[333050734,1721778653873,-3610.12,0.00010998,2]
[333050735,1721778653882,-861.94,0.00010998,2]
[333050736,1721778653893,-1250.0,0.00011,2]
[333050737,1721778653902,-1000.0,0.0001104,2]
[333050738,1721778653912,-150.0,0.00011068,2]
[333050739,1721778653922,-348.63039,0.0001107,2]
[333050740,1721778653931,-314.13297491,0.00011086,2]
[333050741,1721778653941,-552.98,0.00011086,2]
[333050742,1721778653950,-502.87,0.00011086,2]
[333050743,1721778653959,-4686.05,0.00011086,2]
[333050744,1721778653969,-500.0,0.00011086,2]
[333050745,1721778653980,-500.0,0.00011086,2]
[333050746,1721778653989,-500.0,0.00011086,2]
[333050747,1721778653999,-500.0,0.00011086,2]
[333050748,1721778654009,-500.0,0.00011086,2]
[333050749,1721778654018,-500.0,0.00011086,2]
[333050750,1721778654028,-1663.0,0.00011087,2]
[333050751,1721778654038,-1254.0,0.00011087,2]
[333050752,1721778654047,-362.0,0.00011087,2]
[333050753,1721778654057,-1829.0,0.00011087,2]
[333050754,1721778654067,-810.0,0.00011087,2]
[333050755,1721778654076,-621.0,0.00011087,2]
[333050756,1721778654086,-450.0,0.00011087,2]
[333050757,1721778654096,-445.0,0.00011087,2]
[333050758,1721778654106,-2382.0,0.00011087,2]
[333050759,1721778654116,-550.0,0.00011087,2]
[333050760,1721778654126,-1994.0,0.00011087,2]
[333050761,1721778654135,-3283.0,0.00011087,2]
[333050762,1721778654145,-150.0,0.00011087,2]
[333050763,1721778654154,-150.0,0.00011087,2]
[333050764,1721778654163,-1202.0,0.00011087,2]
[333050765,1721778654172,-5121.0,0.00011087,2]
[333050766,1721778654182,-150.0,0.00011087,2]
[333050767,1721778654191,-500.0,0.00011097,2]
[333050768,1721778654200,-490.64782815,0.00011103,2]
[333050769,1721778654209,-299.76,0.00011103,2]
[333050770,1721778654219,-294.63,0.00011103,2]
[333050771,1721778654228,-150.0,0.00011103,2]
[333050772,1721778654238,-500.0,0.00011103,2]
[333050773,1721778654247,-500.0,0.00011103,2]
[333050774,1721778654256,-649.34,0.00011103,2]
[333050775,1721778654265,-500.0,0.00011103,2]
[333050776,1721778654274,-500.0,0.00011103,2]
[333050777,1721778654284,-476.02,0.00011103,2]
[333050778,1721778654293,-635.86,0.00011103,2]
[333050779,1721778654302,-500.0,0.00011103,2]
[333050780,1721778654311,-500.0,0.00011103,2]
[333050781,1721778654321,-500.0,0.00011103,2]
[333050782,1721778654331,-841.23,0.00011103,2]
[333050783,1721778654340,-500.0,0.00011103,2]
[333050784,1721778654349,-510.42,0.00011103,2]
[333050785,1721778654359,-801.19,0.00011103,2]
[333050786,1721778654369,-814.8,0.00011103,2]
[333050787,1721778654378,-909.88,0.00011103,2]
[333050788,1721778654388,-713.25,0.00011103,2]
[333050789,1721778654397,-279.34,0.00011103,2]
[333050790,1721778654407,-611.6,0.00011103,2]
[333050791,1721778654417,-669.69,0.00011103,2]
[333050792,1721778654427,-500.0,0.00011103,2]
[333050793,1721778654436,-500.0,0.00011103,2]
[333050794,1721778654445,-500.0,0.00011103,2]
[333050795,1721778654455,-500.0,0.00011103,2]
[333050796,1721778654464,-1209.44,0.00011103,2]
[333050797,1721778654474,-1542.79,0.00011103,2]
[333050798,1721778654484,-3610.12,0.00011103,2]
[333050799,1721778654494,-861.94,0.00011103,2]
[333050800,1721778654504,-5000.0,0.00011105,2]
[333050801,1721778654513,-1329.37613733,0.00011105,2]
[333050802,1721778654522,-155.10759368,0.00011105,2]
[333050803,1721778654532,-155.0,0.00011105,2]
[333050804,1721778654541,-246.53949848,0.00011105,2]
[333050805,1721778654551,-507.04803185,0.00011105,2]
[333050806,1721778654560,-159.30245147,0.00011105,2]
[333050807,1721778654573,-1255.76158876,0.00011105,2]
[333050808,1721778654582,-281.45287903,0.00011105,2]
[333050809,1721778654592,-15465.42611923,0.00011105,2]
[333050810,1721778654601,-10530.80114964,0.00011105,2]
[333050811,1721778654612,-379.58716445,0.00011129,2]
[333050812,1721778654621,-536.9428,0.0001113,2]
[333050813,1721778654630,-2271.45,0.00011183,2]
[333050814,1721778654640,-1391.01,0.00011183,2]
[333050815,1721778654650,-500.0,0.00011183,2]
[333050816,1721778654659,-500.0,0.00011183,2]
[333050817,1721778654669,-588.74,0.00011183,2]
[333050818,1721778654678,-426.48,0.00011183,2]
[333050819,1721778654687,-3997.7584495,0.00011184,2]
[333050820,1721778654696,-500.0,0.00011185,2]
[333050821,1721778654706,-13423.46747768,0.00011186,2]
[333050822,1721778654716,-28091.26787554,0.00011186,2]
[333050823,1721778654726,-24767.52746557,0.00011186,2]
[333050824,1721778654735,-22632.54477607,0.00011186,2]
[333050825,1721778654744,-276.69675869,0.00011186,2]
[333050826,1721778654754,-546.87,0.00011191,2]
[333050827,1721778654763,-500.0,0.00011191,2]
[333050828,1721778654772,-500.0,0.00011191,2]
[333050829,1721778654782,-9220.8479104,0.00011192,2]
[333050830,1721778654791,-74045.1398114,0.00011192,2]
[333050831,1721778654800,-164.49297802,0.00011197,2]
[333050832,1721778654810,-163.8951949,0.00011198,2]
[333050833,1721778654820,-759.57906826,0.00011206,2]
[333050834,1721778654829,-379.58716445,0.00011265,2]
[333050835,1721778654839,-5397.51614816,0.00011321,2]
[333050836,1721778654848,-5397.51614816,0.00011324,2]
[333050837,1721778655145,-9259.73193231,0.00011324,2]
[333050838,1721778655164,-168.73,0.00011361,2]
[333050839,1721778655174,-379.58716445,0.000114,2]
[333050840,1721778655183,-168.73,0.00011412,2]
[333050841,1721778655193,-800.0,0.00011428,4]
[333050842,1721778655202,-552.98,0.00011497,2]
[333050843,1721778655212,-502.87,0.00011497,2]
[333050844,1721778655222,-4686.05,0.00011497,2]
[333050845,1721778655233,-500.0,0.00011497,2]
[333050846,1721778655242,-500.0,0.00011497,2]
[333050847,1721778655251,-500.0,0.00011497,2]
[333050848,1721778655261,-500.0,0.00011497,2]
[333050849,1721778655271,-500.0,0.00011497,2]
[333050850,1721778655280,-500.0,0.00011497,2]
[333050851,1721778655290,-150.0,0.00011498,2]
[333050852,1721778655301,-500.0,0.00011498,2]
[333050853,1721778655311,-500.0,0.00011498,2]
[333050854,1721778655321,-505.48,0.00011498,2]
[333050855,1721778655331,-229.48,0.00011498,2]
[333050856,1721778655341,-500.0,0.00011498,2]
[333050857,1721778655352,-599.5,0.00011498,2]
[333050858,1721778655361,-500.0,0.00011498,2]
[333050859,1721778655372,-635.86,0.00011498,2]
[333050860,1721778655381,-500.0,0.00011498,2]
[333050861,1721778655391,-500.0,0.00011498,2]
[333050862,1721778655401,-500.0,0.00011498,2]
[333050863,1721778655410,-500.0,0.00011498,2]
[333050864,1721778655420,-500.0,0.00011498,2]
[333050865,1721778655429,-500.0,0.00011498,2]
[333050866,1721778655439,-500.0,0.00011498,2]
[333050867,1721778655448,-500.0,0.00011498,2]
[333050868,1721778655458,-500.0,0.00011498,2]
[333050869,1721778655468,-841.23,0.00011498,2]